Cogmind - Beta 10 @@@ ROGUE MODE // 2020.09.16 @ 21:40:13 Player: 3.14 Result: Self-destructed Performance ------------- Evolutions (5) 2500 Regions Visited (10) 2000 Robots Destroyed (131) 655 Value Destroyed (4710) 4710 Prototype IDs (32) 640 Alien Tech Used (0) 0 Bonus (882) 882 TOTAL SCORE: 11387 Bonus ------- High Alert Combat Kills 415 Follower Combat Kills 575 Friendly Fire -108 Cogmind --------- Core Integrity 764/1000 Matter 247/300 Energy 825/825 System Corruption 0% Temperature Cool (9) Movement Walking (190) Ox2 Location -5/Extension Parts ------- > --- POWER (2) -------- Reinforced Deuterium Engine Compact Particle Reactor > --- PROPULSION (3) --- Improved Titanium Leg Improved Titanium Leg > --- UTILITY (10) ----- Large Storage Unit Large Storage Unit High-capacity Storage Unit Energy Well Experimental Signal Interpreter Modified TNC Advanced Targeting Computer Medium Reflective Plating Focal Shield > --- WEAPON (2) ------- (None) > --- INVENTORY (24) --- Carbon-fiber Leg Carbon-fiber Leg Improved Titanium Leg Flexi-carbon Leg Improved Cooling System Advanced Cooling System Energy Well (500) Advanced Sensor Array Advanced Sensor Array Core Analyzer Armor Integrity Analyzer EM Shield System Backup Module Disruptor Cannon Plasma Cannon Phase Cannon Heavy Plasma Cannon Advanced Plasma Cannon Makeshift Sword Peak State ------------ > --- POWER ------------ Micro Fission Core Antimatter Reactor > --- PROPULSION ------- Improved Carbon-fiber Leg Flexi-carbon Leg Armored Leg > --- UTILITY ---------- Advanced Cooling System Large Storage Unit Large Storage Unit High-capacity Storage Unit Experimental Signal Interpreter Modified TNC Advanced Targeting Computer Improved Utility Shielding Medium Reflective Plating Focal Shield > --- WEAPON ----------- Proton Cannon Advanced Plasma Cannon > --- INVENTORY -------- Antimatter Reactor Improved Titanium Leg Improved Titanium Leg Improved Titanium Leg Flexi-carbon Leg Improved Cooling System Energy Well Energy Well Advanced Sensor Array Advanced Sensor Array Core Analyzer Armor Integrity Analyzer Medium Reflective Plating Medium Reflective Plating Medium Reflective Plating EM Shield System Backup Module Proton Cannon Disruptor Cannon Plasma Cannon Phase Cannon Heavy Plasma Cannon Improved Proton Missile Launcher Makeshift Sword [Rating: 84] Favorites ----------- Power Micro Nuclear Core Engine Light Ion Engine Power Core Micro Nuclear Core Reactor Antimatter Reactor Propulsion Aluminum Leg Treads Light Treads Leg Aluminum Leg Utility Large Storage Unit Device Advanced Sensor Array Storage Large Storage Unit Processor Modified TNC Protection Medium Reflective Plating Weapon Beam Cannon Energy Gun EM Pulse Gun Energy Cannon Beam Cannon Launcher Improved Proton Missile Launcher Slashing Weapon Makeshift Sword Build | -11 -10 -9 -9 -9 -8 -8 -7 -6 -5 -5 ------- Run | Scr Mat Mat Min Exi Min Mat Fac Fac Fac Ext Slots Evolved 10 | . . 2 . . . 2 2 2 2 . Power 1 | . . . . . . . 1 . . . Propulsion 1 | . . . . . . 1 . . . . Utility 8 | . . 2 . . . 1 1 2 2 . Weapon . | . . . . . . . . . . . Parts Attached 190 | 6 3 6 . 2 . 24 65 44 7 33 Power 14 | 1 . . . 1 . 2 2 4 1 3 Engine 4 | 1 . . . 1 . 1 . . . 1 Core 6 | . . . . . . 1 1 3 1 . Reactor 4 | . . . . . . . 1 1 . 2 Propulsion 36 | 2 . . . . . 8 11 9 1 5 Treads 2 | 2 . . . . . . . . . . Leg 34 | . . . . . . 8 11 9 1 5 Wheel . | . . . . . . . . . . . Hover . | . . . . . . . . . . . Flight . | . . . . . . . . . . . Utility 70 | 1 2 2 . 1 . 2 27 19 5 11 Device 36 | . . 1 . . . . 15 10 4 6 Storage 9 | 1 2 . . 1 . 1 2 . . 2 Processor 4 | . . . . . . . 2 2 . . Hackware . | . . . . . . . . . . . Protection 21 | . . 1 . . . 1 8 7 1 3 Artifact . | . . . . . . . . . . . Weapon 70 | 2 1 4 . . . 12 25 12 . 14 Energy Gun 6 | 2 . . . . . 2 2 . . . Energy Cannon 43 | . 1 3 . . . 7 15 7 . 10 Ballistic Gun . | . . . . . . . . . . . Ballistic Cannon . | . . . . . . . . . . . Launcher 13 | . . 1 . . . 2 3 3 . 4 Special Weapon . | . . . . . . . . . . . Impact Weapon . | . . . . . . . . . . . Slashing Weapon 8 | . . . . . . 1 5 2 . . Piercing Weapon . | . . . . . . . . . . . Special Melee Weapon . | . . . . . . . . . . . Unidentified Prototypes 5 | . . . . . . 2 . 1 1 1 Parts Lost 18 | . . . . . . 2 5 1 . 10 Power 3 | . . . . . . . 2 . . 1 Propulsion 6 | . . . . . . . 2 1 . 3 Utility 3 | . . . . . . . . . . 3 Weapon 6 | . . . . . . 2 1 . . 3 Highest Loss Streak 8 | . . . . . . 1 4 1 . 8 Average Slot Usage (%) 99 | . 99 97 100 100 100 98 99 99 100 99 Engine 3 | . 14 11 11 11 11 7 . . . . Core 5 | . . . . . . 1 13 3 5 4 Reactor 3 | . . . . . . . . 8 5 4 Treads 5 | . 28 22 22 22 22 . . . . . Leg 15 | . . . . . . 27 22 19 17 16 Device 8 | . . 9 11 11 11 9 5 7 11 10 Storage 21 | . 27 22 22 22 22 25 23 20 17 17 Processor 11 | . . . . . . . 14 19 17 17 Protection 6 | . . 9 11 11 11 9 1 5 11 9 Energy Gun 1 | . 24 1 . . . 3 1 . . . Energy Cannon 11 | . 3 19 22 22 22 13 10 7 . 9 Slashing Weapon 1 | . . . . . . . 2 3 5 . Naked Turns . | . . . . . . . . . . . Heaviest Build 118 | 10 41 45 44 60 60 81 102 118 111 117 Greatest Support 60 | 40 40 40 40 40 40 35 40 60 56 60 Greatest Overweight (x) 4 | . 1 1 1 1 1 2 3 4 1 2 Average Overweight (x) 1 | . . 1 1 1 1 1 2 1 1 1 Largest Inventory Capacity 24 | 6 16 16 16 18 18 24 24 24 24 24 Average Capacity 21 | 4 15 16 16 17 18 23 24 24 24 24 Most Carried 24 | 4 16 16 16 18 18 24 24 24 24 24 Average Carried 21 | 2 11 15 16 17 18 21 23 23 23 22 Final Capacity 24 | 6 16 16 16 18 18 24 24 24 24 24 Final Carried 24 | 4 15 16 16 18 18 24 21 24 24 19 Class Distribution -------------------- 32% | Hauler-Mutant 22% | Hauler-Assassin 21% | Mutant 13% | Hauler-Skirmisher 8% | Commander-Mutant Dominant Class ---------------- Mutant | -10/Materials Mutant | -9/Materials Mutant | -9/Mines Mutant | -9/Exiles Commander-Mutant | -8/Mines Hauler-Mutant | -8/Materials Hauler-Mutant | -7/Factory Hauler-Assassin | -6/Factory Hauler-Assassin | -5/Factory Hauler-Mutant | -5/Extension Resources | -11 -10 -9 -9 -9 -8 -8 -7 -6 -5 -5 ----------- Run | Scr Mat Mat Min Exi Min Mat Fac Fac Fac Ext Matter Collected 2631 | 248 30 14 1 . . 343 727 816 . 452 Remotely . | . . . . . . . . . . . Salvage Created 6703 | 71 235 41 . . . 288 1912 1621 . 2535 Parts 283 | . 16 4 . . . 19 90 61 . 93 Haulers Intercepted 3 | . 1 . . . . 1 . 1 . . Recyclers Shooed 7 | . 1 . . . . 1 2 . . 3 Parts Field Recycled . | . . . . . . . . . . . Retrieved Matter . | . . . . . . . . . . . Parts Self-Destructed . | . . . . . . . . . . . Prevented . | . . . . . . . . . . . Kills | -11 -10 -9 -9 -9 -8 -8 -7 -6 -5 -5 ------- Run | Scr Mat Mat Min Exi Min Mat Fac Fac Fac Ext Combat Hostiles Destroyed 92 | . 2 4 . . . 8 30 22 . 26 Melee 7 | . . . . . . 1 5 1 . . Cannons 23 | . . 1 . . . 4 6 3 . 9 AOE 37 | . 2 3 . . . 3 16 9 . 4 Classes Destroyed 16 | 1 3 2 . . . 2 6 . . 2 Worker 5 | . . . . . . 1 . 1 . 3 Builder 7 | . . . . . . 1 1 2 . 3 Tunneler 1 | . . . . . . . 1 . . . Hauler 3 | . 1 . . . . 1 . 1 . . Recycler 16 | 1 1 . . . . . 11 . . 3 Mechanic 1 | . . . . . . . . . . 1 Operator 1 | . 1 . . . . . . . . . Watcher 5 | . . 1 . . . . 1 1 . 2 Swarmer 23 | . . 4 . . . 5 11 3 . . Grunt 39 | . 2 . . . . 3 6 12 . 16 Brawler 5 | . . . . . . . 2 2 . 1 Duelist 2 | . . . . . . . 2 . . . Sentry 8 | . . . . . . . 2 3 . 3 Hunter 6 | . . . . . . . 2 1 . 3 Programmer 8 | . . . . . . . 5 1 . 2 Behemoth 1 | . . . . . . . . . . 1 Best Kill Streak 12 | 1 2 4 . . . 6 10 8 . 12 Combat Bots Only 9 | . 1 4 . . . 5 7 8 . 9 Max Kills in Single Turn 4 | 1 1 3 . . . 3 4 3 . 3 Gunslinging . | . . . . . . . . . . . Exploded 4 | . 1 3 . . . 3 4 2 . 2 Melee 1 | . . . . . . 1 1 1 . . Uniques/NPCs Destroyed . | . . . . . . . . . . . Combat | -11 -10 -9 -9 -9 -8 -8 -7 -6 -5 -5 -------- Run | Scr Mat Mat Min Exi Min Mat Fac Fac Fac Ext Damage Taken 5875 | . 114 57 . . . 559 1775 1019 . 2351 Core 622 | . 23 7 . . . 98 163 95 . 236 Absorbed by Shields 118 | . . . . . . . . . . 118 Core Remaining (%) 89 | 100 90 . . . 98 82 76 88 . . Volleys Fired 204 | . 14 7 . . . 22 54 31 . 76 Largest 2 | . 2 2 . . . 2 2 2 . 2 Hottest 188 | . 96 120 . . . 124 133 138 . 188 Shots Fired 352 | . 28 12 . . . 38 99 49 . 126 Gun 31 | . 24 . . . . 4 3 . . . Cannon 277 | . 4 10 . . . 33 84 36 . 110 Launcher 44 | . . 2 . . . 1 12 13 . 16 Special . | . . . . . . . . . . . Kinetic . | . . . . . . . . . . . Thermal 95 | . 10 10 . . . 31 30 . . 14 Explosive 15 | . . 2 . . . 1 12 . . . Electromagnetic 242 | . 18 . . . . 6 57 49 . 112 Robot Hit Streak 24 | . 17 6 . . . 11 12 24 . 17 Robot Miss Streak 4 | . 4 1 . . . 2 4 2 . 2 Penetration Max . | . . . . . . . . . . . Secondary Targets . | . . . . . . . . . . . Shots Hit Robots 275 | . 20 7 . . . 27 74 49 . 98 Core Hits 203 | . 9 5 . . . 14 67 42 . 66 Critical Hits 3 | . 1 . . . . . . 1 . 1 Critical Kills . | . . . . . . . . . . . Critical Parts Destroyed 3 | . 1 . . . . . . 1 . 1 Melee Attacks 65 | . . . . . . 4 33 26 2 . Impact . | . . . . . . . . . . . Slashing 65 | . . . . . . 4 33 26 2 . Piercing . | . . . . . . . . . . . Sneak Attacks 6 | . . . . . . . 3 3 . . Combat Hostiles . | . . . . . . . . . . . Follow-up Attacks . | . . . . . . . . . . . Damage Inflicted 13702 | 7 358 311 . . . 742 3998 3278 . 5008 Guns 293 | . 203 . . . . 20 70 . . . Cannons 5323 | . 71 124 . . . 445 1468 701 . 2514 Explosions 6890 | . 84 187 . . . 179 1859 2087 . 2494 Melee 1189 | . . . . . . 98 601 490 . . Ramming 7 | 7 . . . . . . . . . . Kinetic . | . . . . . . . . . . . Thermal 2612 | . 149 124 . . . 325 618 351 . 1045 Explosive 2107 | . . 187 . . . 179 1741 . . . Electromagnetic 7787 | . 209 . . . . 140 1038 2437 . 3963 Impact . | . . . . . . . . . . . Slashing 1189 | . . . . . . 98 601 490 . . Piercing . | . . . . . . . . . . . Highest Corruption 7 | . 1 . . . . . 7 2 . 1 Average Corruption 2 | . 1 . . . . . 4 1 . 1 Corruption Purged 4 | . . . . . . . 1 2 . 1 Effects 26 | . 1 . . . . . 19 6 . . Message Errors 5 | . . . . . . . 3 2 . . Matter Fused 3 | . . . . . . . 3 . . . Heat Flow Errors 5 | . . . . . . . 3 2 . . Energy Discharges 4 | . . . . . . . 3 1 . . Parts Rejected 1 | . . . . . . . 1 . . . Misfires 3 | . . . . . . . 3 . . . Targeting Errors 4 | . 1 . . . . . 2 1 . . Weapon Failures 1 | . . . . . . . 1 . . . Overload Shots . | . . . . . . . . . . . Overflow Damage 571 | . . 31 . . . 18 226 154 . 142 Projectiles 123 | . . 10 . . . 18 23 2 . 70 Explosions 273 | . . 21 . . . . 129 51 . 72 Melee 175 | . . . . . . . 74 101 . . Knockbacks . | . . . . . . . . . . . Impact . | . . . . . . . . . . . Kinetic . | . . . . . . . . . . . Secondary . | . . . . . . . . . . . Self-Inflicted Damage 388 | . . 25 . . . . 240 57 . 66 Shots 12 | . . 1 . . . . 4 2 . 5 Rammed 2 | 2 . . . . . . . . . . Targets Rammed 3 | 3 . . . . . . . . . . Kicked . | . . . . . . . . . . . Crushed 1 | 1 . . . . . . . . . . Highest Temperature 306 | . 120 . . . . 51 306 294 . 180 Average Temperature 75 | . 40 . . . . 23 78 114 . 38 Received Heat Transfer 1287 | . 48 . . . . 225 216 261 . 537 Effects 1 | . . . . . . . . 1 . . Energy Bleed 1 | . . . . . . . . 1 . . Siege Activations . | . . . . . . . . . . . Robots Corrupted 27 | . . . . . . . 4 9 . 14 Combat Hostiles 25 | . . . . . . . 3 9 . 13 Parts Fried 49 | . . . . . . . 9 14 . 26 Impact Corruptions . | . . . . . . . . . . . Robots Melted . | . . . . . . . . . . . Combat Hostiles . | . . . . . . . . . . . Parts Melted 7 | . . . . . . . 3 . . 4 Heat Transferred 3541 | . 300 259 . . . 666 766 250 . 1300 Parts Sabotaged 4 | . . . . . . . . . . 4 Parts Stolen . | . . . . . . . . . . . Parts Stripped . | . . . . . . . . . . . Power Chain Reactions 16 | . 2 . . . . . 1 5 . 8 Missiles Intercepted . | . . . . . . . . . . . Alert | -11 -10 -9 -9 -9 -8 -8 -7 -6 -5 -5 ------- Run | Scr Mat Mat Min Exi Min Mat Fac Fac Fac Ext Peak Influence 725 | 5 144 198 . . . 188 725 420 159 692 Initial 354 | . 3 60 . . . . 18 354 153 6 Average 196 | . 86 124 . . . 63 206 248 151 345 Maximum Alert Level 3 | . . . . . . . 3 2 . 2 Low Security (%) 53 | 100 100 100 100 . 100 100 47 20 100 21 Level 1 33 | . . . . . . . 36 77 . 22 Level 2 12 | . . . . . . . 14 1 . 56 Level 3 . | . . . . . . . 1 . . . Level 4 . | . . . . . . . . . . . Level 5 . | . . . . . . . . . . . High Security . | . . . . . . . . . . . Max Security . | . . . . . . . . . . . Squads Dispatched 28 | . . . . . . . 12 7 . 9 Investigation 4 | . . . . . . . 1 2 . 1 Extermination 5 | . . . . . . . 3 2 . . Reinforcement 13 | . . . . . . . 4 3 . 6 Assault 3 | . . . . . . . 1 . . 2 Garrison 3 | . . . . . . . 3 . . . Intercept . | . . . . . . . . . . . Construction Impeded 4 | . . . . . . . 2 . . 2 Haulers Reinforced . | . . . . . . . . . . . Stealth | -11 -10 -9 -9 -9 -8 -8 -7 -6 -5 -5 --------- Run | Scr Mat Mat Min Exi Min Mat Fac Fac Fac Ext Distress Signals 10 | . 2 . . . . . 2 3 . 3 Communications Jammed . | . . . . . . . . . . . Distress Signals . | . . . . . . . . . . . Times Spotted 149 | . 8 5 . . . 13 37 31 . 55 Peak Tracking Total 9 | . 3 1 . . . 5 8 8 . 9 Tactical Retreats 6 | . 1 . . . . . 1 2 . 2 Traps | -11 -10 -9 -9 -9 -8 -8 -7 -6 -5 -5 ------- Run | Scr Mat Mat Min Exi Min Mat Fac Fac Fac Ext Traps Triggered 6 | . 1 . . . . . 3 2 . . Indirectly . | . . . . . . . . . . . Trap Hack Attempts . | . . . . . . . . . . . Triggered . | . . . . . . . . . . . Disarmed . | . . . . . . . . . . . Reprogrammed . | . . . . . . . . . . . Reused . | . . . . . . . . . . . Traps Extracted . | . . . . . . . . . . . Installed . | . . . . . . . . . . . Triggered . | . . . . . . . . . . . Machines | -11 -10 -9 -9 -9 -8 -8 -7 -6 -5 -5 ---------- Run | Scr Mat Mat Min Exi Min Mat Fac Fac Fac Ext Machines Disabled 17 | . 1 1 . . . 1 7 2 . 5 Max in Single Turn 2 | . 1 1 . . . 1 2 2 . 1 Garrison Access 1 | . . . . . . . 1 . . . Machines Sabotaged . | . . . . . . . . . . . Garrisons Compromised . | . . . . . . . . . . . Overloaded Fab Kills . | . . . . . . . . . . . Fab Network Shutdowns . | . . . . . . . . . . . Hacking | -11 -10 -9 -9 -9 -8 -8 -7 -6 -5 -5 --------- Run | Scr Mat Mat Min Exi Min Mat Fac Fac Fac Ext Machines Accessed 35 | . 4 1 . 1 . 5 11 8 2 3 Terminals 29 | . 4 1 . . . 5 8 7 1 3 Fabricators 3 | . . . . . . . 1 1 1 . Repair Stations 1 | . . . . . . . 1 . . . Recycling Units . | . . . . . . . . . . . Scanalyzers . | . . . . . . . . . . . Garrison Access 1 | . . . . . . . 1 . . . Total Hacks 82 | . 15 4 . 1 . 11 26 14 4 7 Successful 43 | . 11 2 . 1 . 7 12 5 3 2 Failed 37 | . 3 1 . . . 4 14 9 1 5 Catastrophic 10 | . . . . . . . 7 2 1 . Database Lockouts 2 | . 1 1 . . . . . . . . Manual 48 | . 10 4 . 1 . 7 16 6 3 1 Terminals 71 | . 15 4 . . . 11 19 12 3 7 Fabricators 7 | . . . . . . . 4 2 1 . Repair Stations 2 | . . . . . . . 2 . . . Recycling Units . | . . . . . . . . . . . Scanalyzers . | . . . . . . . . . . . Garrison Access 1 | . . . . . . . 1 . . . Terminal Hacks 22 | . 5 1 . 1 . 4 4 3 2 2 Part Schematic 1 | . . . . . . 1 . . . . Robot Analysis 3 | . 2 1 . . . . . . . . Prototype ID Bank 2 | . 1 . . . . 1 . . . . Open Door 3 | . . . . . . . . . 1 2 Terminal Index 3 | . 1 . . . . . 1 1 . . Unreport Threat 3 | . . . . . . 1 . 1 1 . Locate Traps 4 | . . . . . . 1 3 . . . Recall Investigation 1 | . . . . . . . . 1 . . Zone Layout 1 | . 1 . . . . . . . . . EX-Prototype ID Bank 1 | . . . . 1 . . . . . . Fabricator Hacks 2 | . . . . . . . 1 1 . . Build 2 | . . . . . . . 1 1 . . Repair Station Hacks 2 | . . . . . . . 2 . . . Scan Component 1 | . . . . . . . 1 . . . Repair 1 | . . . . . . . 1 . . . Recycling Unit Hacks . | . . . . . . . . . . . Scanalyzer . | . . . . . . . . . . . Garrison Access Hacks 1 | . . . . . . . 1 . . . Seal Access 1 | . . . . . . . 1 . . . Unauthorized Hacks 16 | . 6 1 . . . 3 4 1 1 . Terminals 15 | . 6 1 . . . 3 4 1 . . Track 2 | . 1 . . . . . 1 . . . Assimilate 1 | . 1 . . . . . . . . . Botnet 10 | . 2 1 . . . 3 3 1 . . Operators 2 | . 2 . . . . . . . . . Fabricators 1 | . . . . . . . . . 1 . Report 1 | . . . . . . . . . 1 . Repair Stations . | . . . . . . . . . . . Recycling Units . | . . . . . . . . . . . Scanalyzers . | . . . . . . . . . . . Garrison Access . | . . . . . . . . . . . Data Cores Recovered 1 | . 1 . . . . . . . . . Used 1 | . 1 . . . . . . . . . Hacking Detections 26 | . 2 . . . . 4 9 7 1 3 Full Trace Events 3 | . . . . . . . 1 1 . 1 Feedback Events . | . . . . . . . . . . . Feedback Blocked . | . . . . . . . . . . . Robot Schematics Acquired . | . . . . . . . . . . . Robots Built . | . . . . . . . . . . . Matter . | . . . . . . . . . . . Time . | . . . . . . . . . . . Total Robot Build Rating . | . . . . . . . . . . . Part Schematics Acquired 1 | . . . . . . 1 . . . . Parts Built 4 | . . . . . . . 2 2 . . Matter 424 | . . . . . . . 234 190 . . Time 212 | . . . . . . . 117 95 . . Total Part Build Rating 24 | . . . . . . . 14 10 . . Parts Repaired . | . . . . . . . . . . . Time 44 | . . . . . . . 44 . . . Parts Recycled . | . . . . . . . . . . . Recycled Matter . | . . . . . . . . . . . Retrieved Matter . | . . . . . . . . . . . Retrieved Components . | . . . . . . . . . . . Parts Scanalyzed . | . . . . . . . . . . . Part Schematics Acquired . | . . . . . . . . . . . Parts Damaged . | . . . . . . . . . . . Bothacking | -11 -10 -9 -9 -9 -8 -8 -7 -6 -5 -5 ------------ Run | Scr Mat Mat Min Exi Min Mat Fac Fac Fac Ext Used RIF Installer . | . . . . . . . . . . . Robots Hacked . | . . . . . . . . . . . Non-combat . | . . . . . . . . . . . Combat . | . . . . . . . . . . . Robot Hacks Applied . | . . . . . . . . . . . Relay Couplers Released 4 | . . . . . . . 4 . . . Programmers 4 | . . . . . . . 4 . . . Robots Rewired 10 | . . . . 6 . . . . . 4 Allies Hacked 2 | . . . . . . . . . . 2 Hacks Repelled . | . . . . . . . . . . . Allies | -11 -10 -9 -9 -9 -8 -8 -7 -6 -5 -5 -------- Run | Scr Mat Mat Min Exi Min Mat Fac Fac Fac Ext Total Allies 13 | . . . . 6 . . . . . 7 Largest Group 6 | . . . . 6 6 6 . . . 5 Highest-Rated Group 242 | . . . . 74 74 74 . . . 242 Highest-Rated Ally 156 | . . . . 21 21 21 . . . 156 Total Orders . | . . . . . . . . . . . Ally Attacks 107 | . . . . . . 25 . . . 82 Total Damage 2522 | . . . . . . 533 . . . 1989 Kills 22 | . . . . . . 7 . . . 15 Allies Corrupted 1 | . . . . . . . . . . 1 Allies Melted . | . . . . . . . . . . . Intel | -11 -10 -9 -9 -9 -8 -8 -7 -6 -5 -5 ------- Run | Scr Mat Mat Min Exi Min Mat Fac Fac Fac Ext Robot Analysis Total 3 | . 2 1 . . . . . . . . Derelict Logs Recovered 1 | . . . 1 . . . . . . . Drone Launches . | . . . . . . . . . . . Drone Recoveries . | . . . . . . . . . . . Exploration | -11 -10 -9 -9 -9 -8 -8 -7 -6 -5 -5 ------------- Run | Scr Mat Mat Min Exi Min Mat Fac Fac Fac Ext Turns Passed 7792 | 81 364 407 297 863 20 690 2075 1687 322 986 Spaces Moved 3538 | 42 179 209 166 431 10 315 866 743 200 377 Core 3 | 3 . . . . . . . . . . Treads 1034 | 39 179 209 166 431 10 . . . . . Legs 2501 | . . . . . . 315 866 743 200 377 Wheels . | . . . . . . . . . . . Hover . | . . . . . . . . . . . Flight . | . . . . . . . . . . . Fastest Speed 50 | 50 160 180 180 180 180 150 180 153 150 150 Average Speed 175 | 152 164 180 180 180 180 175 180 173 151 176 Slowest Speed 240 | 160 180 180 180 180 180 180 210 240 153 190 Overloaded Moves . | . . . . . . . . . . . Propulsion Burnouts . | . . . . . . . . . . . Robots Hopped . | . . . . . . . . . . . Cave-ins Triggered . | . . . . . . . . . . . Exploration Rate (%) 29 | 4 26 17 47 89 7 25 34 24 6 46 Regions Visited 10 Branch Regions 4 Pre-discovered Areas 2 | . . . 2 . . . . . . . Known Exits Taken 3 | . . . . . . . 1 1 1 . Unknown Exits Taken 7 | 1 1 1 1 1 1 1 . . . . Scrap Searched . | . . . . . . . . . . . Spaces Dug 44 | . . 13 . . . . 12 12 2 5 Terrain Destroyed 212 | . 3 18 . . . 1 142 25 2 21 Melee 26 | . . . . . . . 12 12 2 . Projectile 2 | . . . . . . . . . . 2 AOE 184 | . 3 18 . . . 1 130 13 . 19 Terrain Rammed . | . . . . . . . . . . . Walls Destroyed . | . . . . . . . . . . . Machines Disabled . | . . . . . . . . . . . Actions | -11 -10 -9 -9 -9 -8 -8 -7 -6 -5 -5 --------- Run | Scr Mat Mat Min Exi Min Mat Fac Fac Fac Ext Total 4714 | 54 221 226 165 520 12 412 1247 1078 220 559 Wait 399 | . 12 . . 2 3 18 168 178 . 18 Move 3528 | 41 178 208 165 430 9 314 865 742 199 377 Hop . | . . . . . . . . . . . Pick Up 99 | 4 12 3 . 4 . 16 27 25 5 3 Fast Attach 28 | 6 1 2 . . . 1 5 7 2 4 Attach 31 | . . . . 1 . 6 7 5 2 10 Detach 1 | . . . . . . . . . . 1 Swap 132 | . 2 4 . 1 . 18 53 32 3 19 Drop 97 | . 2 2 . 3 . 13 35 32 7 3 Fire 204 | . 14 7 . . . 22 54 31 . 76 Melee 65 | . . . . . . 4 33 26 2 . Ram . | . . . . . . . . . . . Kick . | . . . . . . . . . . . Crush 3 | 3 . . . . . . . . . . Escape Stasis . | . . . . . . . . . . . Rewire 127 | . . . . 79 . . . . . 48 Trap . | . . . . . . . . . . . Miscellaneous . | . . . . . . . . . . . Route ------- -11/Scrapyard -10/Materials -9/Materials -9/Mines -9/Exiles (discovered 2 exits: [*Min x2]) -8/Mines -8/Materials -7/Factory -6/Factory -5/Factory -5/Extension History --------- Turn | Location | Event 17 | -11/Scrapyard | Discovered new exit (range 15) 82 | -11/Scrapyard | Entered Materials 92 | -10/Materials | Central database locked down 309 | -10/Materials | Build established: Mutant 406 | -10/Materials | Discovered new exit (range 15) 446 | -10/Materials | Entered another Materials area 446 | -9/Materials | Evolved 2 slots: Utility x2 647 | -9/Materials | Discovered new exit (range 11) 756 | -9/Materials | Central database locked down 853 | -9/Materials | Entered Mines 980 | -9/Mines | YI-UF0 nonchalantly dropped a Grenade Launcher on the ground 1053 | -9/Mines | Learned location of Zion (-7) 1105 | -9/Mines | Learned location of Storage (-7) 1143 | -9/Mines | Deemed a non-threat by the Exiles lab entrance 1143 | -9/Mines | Discovered new exit (range 5) 1150 | -9/Mines | Entered Exiles 1150 | -9/Exiles | Found Exiles lab destroyed 1177 | -9/Exiles | Discovered new exit (range 15) 1712 | -9/Exiles | Opened EX-Vault 1724 | -9/Exiles | Found Modified TNC 1915 | -9/Exiles | Build established: Commander-Mutant 1995 | -9/Exiles | Discovered new exit (range 10) 2013 | -9/Exiles | Entered Mines 2013 | -8/Mines | Accompanied by 6 allies 2022 | -8/Mines | Discovered new exit (range 5) 2033 | -8/Mines | Entered Materials 2033 | -8/Materials | Accompanied by 6 allies 2033 | -8/Materials | Evolved 2 slots: Propulsion x1, Utility x1 2636 | -8/Materials | Build established: Hauler-Mutant 2714 | -8/Materials | Discovered new exit (range 5) 2723 | -8/Materials | Entered Factory 2723 | -7/Factory | Evolved 2 slots: Power x1, Utility x1 3160 | -7/Factory | Fabricated Antimatter Reactor? 3628 | -7/Factory | Build established: Hauler-Assassin 3734 | -7/Factory | Destroyed 7 combat bots 4347 | -7/Factory | Garrison activated, responded to threat 4561 | -7/Factory | Lost 4 parts (1p2n1w) 4566 | -7/Factory | Discovered new exit (range 16) 4633 | -7/Factory | Identified exit to Factory 4638 | -7/Factory | Build established: Hauler-Mutant 4723 | -7/Factory | First assault squad dispatched 4798 | -7/Factory | Entered another Factory area 4798 | -6/Factory | Evolved 2 slots: Utility x2 5618 | -6/Factory | Build established: Hauler-Assassin 5860 | -6/Factory | Destroyed 8 combat bots 6220 | -6/Factory | Found Prototype Processor 6220 | -6/Factory | Identified Exp. Signal Interpreter 6237 | -6/Factory | Fabricated Energy Well? 6462 | -6/Factory | Discovered new exit (range 16) 6483 | -6/Factory | Identified exit to Factory 6485 | -6/Factory | Entered another Factory area 6485 | -5/Factory | Evolved 2 slots: Utility x2 6801 | -5/Factory | Discovered new exit (range 6) 6805 | -5/Factory | Identified exit to Extension 6807 | -5/Factory | Entered Extension 6895 | -5/Extension | Rescued a captive Derelict 6895 | -5/Extension | Rescued a captive Derelict 6952 | -5/Extension | Rescued A7 7332 | -5/Extension | Build established: Hauler-Mutant 7565 | -5/Extension | Spotted B-75 Beast 7576 | -5/Extension | Allies destroyed B-75 Beast 7585 | -5/Extension | Spotted B-75 Beast 7617 | -5/Extension | Extracted ID and sensor layout for unrecognized location from A7's data core 7632 | -5/Extension | Disrupted transfer network 7673 | -5/Extension | Destroyed B-75 Beast 7686 | -5/Extension | Lost 8 parts (1p3n3u1w) 7707 | -5/Extension | First assault squad dispatched 7772 | -5/Extension | Destroyed 9 combat bots 7793 | -5/Extension | Self-destructed Last Messages --------------- 07781_ M-28 Smith unfolds itself. 07782_ K-01 Serf destroyed. 07783_ C-30 ARC bursts open, deploying its payload. 07783_ G-67 Veteran unfolds itself. 07783_ G-50 Soldier unfolds itself. 07783_ E-15 Imp unfolds itself. 07787_ G-50 Soldier destroyed. 07787_ G-67 Veteran destroyed. 07787_ Wheel fried. 07787_ M-28 Smith destroyed. 07787_ G-50 Soldier misfires. 07787_ G-50 Soldier IFF system glitched. 07788_ Med. Reflective Plating blown off. 07788_ Imp. Proton Missile Launcher blown off. 07788_ Adv. Cooling System blown off. 07788_ Carbon-fiber Leg blown off. 07788_ E-15 Imp destroyed. 07791_ G-50 Soldier misfires. 07792_ Acquired Imp. Proton Missile Launcher. 07793_ Imp. Proton Missile Launcher destroyed. Map ----- +----------------------------------------------------+ | ?????????????????????????????????????????????????? | | ?????????????????????????????????????????????????? | | ?????????????????????????????????????????????????? | | ?????????????????????????????????????????????????? | | ?????????????????????????????????????????????????? | | ?????????????????????????????????????????????????? | | ?????????????????????????????????????????????????? | | ?????????????????????????????????????????????????? | | ?????????????????????????????????????????????????? | | ?????????????????????????????????????????????????? | | ????????????????????#????????????????????????????? | | ??????????????????# #????????????????????????????? | | ??????????????????# #??????????#?????????????????? | | ??????????????????# #????????? #?????????????????? | | ??????????????????# #?###?##?? #?????????????????? | | ????????????????### ### ## ### ###???????????????? | | ????????????????#"" ""#???????????????? | | ??????????###???#! % %% " #???????????????? | | ???????#### ###?#[= % =%==%= t #???????????????? | | ?????### ###%! !%*%= !% #???????????????? | | ###### ## #%!*=/ %! ########????????? | | R [[=!* = ????????? | | | *[==%= g ???????? | | *%[!%!! !%=% g g ???????? | | % |=! ![* !%*% *g% % ???????? | | kkR=%=k=tR[*%!@% b =u%=!%% ???????? | | ############ ##=;=]%=! =!= g######??????????? | | ??????????#######!!! = !% #???????????????? | | ????????????????# !]=* #???????????????? | | ????????????????# #???????????????? | | ????????????????# #???????????????? | | ????????????????######T#"""#######???????????????? | | ?????????????????????###?????????????????????????? | | ?????????????????????????????????????????????????? | | | | | | | | | | | | | | | | | | | | | | | | | | | | | | | | | +----------------------------------------------------+ Best States ------------- Heat Dissipation 71 Energy Generation 37 Energy Capacity 895 Matter Stores 300 Matter Capacity 300 Sight Range 16 Robot Scan Range 16 Terrain Scan Density 10 Armor Coverage 450 Resistance: KI 20 Resistance: TH 15 Resistance: EM 25 Propulsion Shielding 66 Utility Shielding 66 Weapon Shielding 66 Evasion (%) 40 Targeting Accuracy 8 Recoil Reduction 2 Item Schematics ----------------- Titanium Leg | -8/Materials | Hacked Robot Schematics ------------------ None Fabricated ------------ Antimatter Reactor | x2 | -7/Factory | Preloaded Energy Well | x2 | -6/Factory | Preloaded Alien Tech Used ----------------- None Achievements -------------- None Challenges ------------ None Game ------ Seed ParticleShieldRefractor Manual? 0 Play Time 00:48:58 Cumulative 575.3 hours Start 2020.09.16 @ 20:51:57 End 2020.09.16 @ 21:40:13 Sessions 1 Manual Loads 0 Difficulty Rogue Special Mode None Game No. 913 Rogue 913 Adventurer 0 Explorer 0 Win Type - Total 53 Types 34/1/7/8/3/0/0/0/0 Lore% 91 Gallery% 93 Achievement% 82 Wizard Run 0 Options --------- ASCII 1 Keyboard 0 Movement Numpad Keybinds 0 Fullscreen 0 Font 14/SmallcapsGlow Map View 76x50 Tactical HUD 1 Map Filters NONE Filters NONE Steam 1 RUN: 5b86029b-85a5-4542-90ba-b96b0e3b34b8